fUSD/lending_fUSD_20250404
["ID","MTS","AMOUNT","RATE_DAILY","PERIOD"]
[357137207,1743782844131,-564.62,0.00034528,84]
[357137208,1743782844154,-250.0,0.00037,2]
[357137209,1743782844179,-250.0,0.00037981,2]
[357137210,1743782844202,-169.43,0.00038663,2]
[357137211,1743782844225,-300.0,0.00039,2]
[357137212,1743782844246,-350.0,0.00041,2]
[357137213,1743782844268,-400.0,0.00043,2]
[357137214,1743782844290,-403.57672032,0.000435,120]
[357137215,1743782844318,-152.82,0.000436,36]
[357137216,1743782844339,-450.0,0.00045,2]
[357137217,1743782844361,-403.57672031,0.00045575,120]
[357137218,1743782844383,-500.0,0.00046,120]
[357137219,1743782844412,-152.82,0.000464,39]
[357137220,1743782844439,-152.82,0.000464,39]
[357137221,1743782844460,-787.82,0.00046445,2]
[357137222,1743782844481,-500.0,0.00047,2]
[357137223,1743782844503,-403.57672031,0.0004765,120]
[357137224,1743782844523,-1745.0,0.000477,2]
[357137225,1743782844543,-150.16,0.00048166,2]
[357137226,1743782844563,-1000.0,0.00048392,2]
[357137227,1743782844583,-764.82777119,0.00048392,2]
[357137228,1743782844604,-787.82,0.00048709,2]
[357137229,1743782844624,-154.22,0.00048776,2]
[357137230,1743782844645,-953.53970054,0.000488,2]
[357137231,1743782854094,-1046.46029946,0.000488,2]
[357137232,1743782854119,-95.06844181,0.00048984,4]
[357137233,1743782945131,-157.96,0.00026849,2]
[357137234,1743782945152,-250.0,0.00029534,2]
[357137235,1743782945173,-157.96,0.00033733,2]
[357137236,1743782945194,-157.96,0.00040616,2]
[357137250,1743783031876,-157.96,0.000475,2]
[357137251,1743783032065,-153.84,0.00048673,120]
[357137252,1743783032085,-198.67,0.000487,120]
[357137253,1743783032096,-589.47196682,0.00048984,4]
[357137254,1743783032108,-24.42573208,0.00048984,4]
[357137255,1743783032118,-550.0,0.00049,2]
[357137256,1743783032127,-83.8897818,0.00049068,31]
[357137257,1743783032139,-116.1102182,0.00049068,31]
[357137258,1743783032148,-151.0,0.0004907,2]
[357137259,1743783032157,-250.0,0.00049099,120]
[357137260,1743783032167,-677.67032862,0.000491,2]
[357137261,1743783032179,-3502.46317791,0.000491,2]
[357137262,1743783032202,-3241.65702531,0.000491,2]
[357137263,1743783032214,-1199.03640389,0.000491,2]
[357137264,1743783032321,-846.54771965,0.000491,2]
[357137364,1743783037823,-1195.50057753,0.000491,2]
[357137365,1743783037835,-5223.60000056,0.000491,2]
[357137366,1743783037848,-1774.1,0.000491,2]
[357137367,1743783037860,-963.60057849,0.000491,2]
[357137368,1743783037871,-5275.82418804,0.000491,2]
[357137369,1743783037880,-290.87,0.000491,2]
[357137370,1743783037890,-150.0,0.00049104,7]
[357137371,1743783037899,-288.48,0.00049119,2]
[357137372,1743783037908,-152.82,0.000492,45]
[357137373,1743783037916,-152.82,0.000492,45]
[357137374,1743783037926,-160.364,0.00049224,86]
[357137375,1743783037934,-760.8,0.00049224,2]
[357137376,1743783037943,-241.0,0.00049314,4]
[357137377,1743783037952,-500.0,0.00049315,120]
[357137378,1743783037961,-500.0,0.00049315,120]
[357137379,1743783037970,-500.0,0.00049315,120]
[357137380,1743783037980,-500.0,0.00049315,120]
[357137381,1743783037989,-500.0,0.00049315,120]
[357137382,1743783037998,-500.0,0.00049315,120]
[357137383,1743783038007,-500.0,0.00049315,120]
[357137384,1743783038015,-500.0,0.00049315,120]
[357137385,1743783038024,-205.46648962,0.00049315,120]
[357137386,1743783038034,-500.0,0.00049315,120]
[357137387,1743783038043,-500.0,0.00049315,120]
[357137388,1743783038052,-500.0,0.00049315,120]
[357137389,1743783038060,-500.0,0.00049315,120]
[357137390,1743783038069,-500.0,0.00049315,120]
[357137391,1743783038079,-500.0,0.00049315,120]
[357137392,1743783038088,-682.75,0.00049315,120]
[357137393,1743783038098,-733.71,0.00049315,120]
[357137395,1743783038106,-618.82,0.00049315,120]
[357137397,1743783038115,-500.0,0.00049315,2]
[357137399,1743783038124,-500.0,0.00049315,120]
[357137401,1743783038133,-500.0,0.00049315,120]
[357137403,1743783038142,-500.0,0.00049315,120]
[357137405,1743783038151,-151.146043,0.00049315,120]
[357137407,1743783038161,-159.412721,0.00049315,120]
[357137409,1743783038170,-151.66367,0.00049315,120]
[357137411,1743783038180,-151.663665,0.00049315,120]
[357137414,1743783038189,-159.412719,0.00049315,120]
[357137416,1743783038199,-500.0,0.00049589,120]
[357137418,1743783038208,-500.0,0.00049589,120]
[357137420,1743783038217,-682.75,0.00049589,120]
[357137422,1743783038226,-733.71,0.00049589,120]
[357137424,1743783038235,-618.82,0.00049589,120]
[357137425,1743783038244,-500.0,0.00049589,2]
[357137427,1743783038254,-500.0,0.00049589,120]
[357137430,1743783038263,-500.0,0.00049589,120]
[357137432,1743783038272,-500.0,0.00049589,120]
[357137434,1743783038281,-1760.0,0.000497,2]
[357137436,1743783038291,-403.57672031,0.00049725,120]
[357137438,1743783038301,-500.0,0.00049861,120]
[357137440,1743783038310,-1056.25,0.00049861,10]
[357137442,1743783038319,-500.0,0.00049861,30]
[357137443,1743783038330,-2000.0,0.00049861,2]
[357137445,1743783038339,-500.0,0.00049861,120]
[357137447,1743783038348,-500.0,0.00049861,120]
[357137450,1743783038358,-580.17,0.00049861,120]
[357137452,1743783038367,-500.0,0.00049861,120]
[357137454,1743783038376,-500.0,0.00049861,120]
[357137456,1743783038385,-500.0,0.00049861,120]
[357137458,1743783038395,-1914.65,0.00049861,2]
[357137460,1743783038404,-678.96,0.00049861,120]
[357137461,1743783038413,-500.0,0.00049861,120]
[357137464,1743783038422,-500.0,0.00049861,120]
[357137465,1743783038432,-500.0,0.00049861,120]
[357137468,1743783038441,-500.0,0.00049861,120]
[357137469,1743783038451,-500.0,0.00049862,16]
[357137471,1743783038461,-500.0,0.00049862,2]
[357137474,1743783038470,-500.000001,0.00049862,3]
[357137476,1743783038480,-402.03884819,0.00049862,120]
[357137478,1743783038489,-532.57192087,0.00049862,120]
[357137479,1743783038498,-508.03964926,0.00049862,120]
[357137481,1743783038508,-522.90512204,0.00049862,120]
[357137484,1743783038517,-273.88824086,0.00049862,120]
[357137486,1743783038526,-500.0,0.00049862,120]
[357137487,1743783038535,-518.80447995,0.00049862,120]
[357137489,1743783038545,-500.0,0.00049862,120]
[357137491,1743783038554,-536.27881818,0.00049862,120]
[357137493,1743783038563,-168.07388932,0.00049862,120]
[357137495,1743783038572,-498.27378014,0.00049862,120]
[357137497,1743783038582,-500.0,0.00049862,120]
[357137499,1743783038591,-508.83902122,0.00049862,120]
[357137501,1743783038600,-500.0,0.00049862,120]
[357137503,1743783038610,-500.0,0.00049862,120]
[357137505,1743783038619,-500.0,0.00049862,120]
[357137507,1743783038629,-500.0,0.00049862,120]
[357137509,1743783038638,-265.06312414,0.00049862,120]
[357137511,1743783038647,-500.0,0.00049862,120]
[357137513,1743783038657,-500.0,0.00049862,2]
[357137515,1743783038666,-500.0,0.00049862,120]
[357137517,1743783038678,-500.0,0.00049862,120]
[357137519,1743783038687,-509.06559653,0.00049862,120]
[357137521,1743783038697,-500.0,0.00049862,120]
[357137523,1743783038706,-368.29013413,0.00049862,120]
[357137525,1743783038716,-500.0,0.00049862,120]
[357137527,1743783038726,-500.0,0.00049863,120]
[357137529,1743783038736,-500.0,0.00049863,120]
[357137531,1743783038746,-682.75,0.00049863,120]
[357137533,1743783038755,-733.71,0.00049863,120]
[357137535,1743783038765,-618.82,0.00049863,120]
[357137537,1743783038776,-500.0,0.00049863,2]
[357137539,1743783038789,-500.0,0.00049863,120]
[357137541,1743783038799,-500.0,0.00049863,120]
[357137543,1743783038809,-500.0,0.00049863,120]
[357137545,1743783038819,-500.0,0.00049899,120]
[357137547,1743783038831,-500.0,0.00049899,120]
[357137549,1743783038841,-500.0,0.00049899,120]
[357137551,1743783038850,-500.0,0.00049899,120]
[357137553,1743783038860,-500.0,0.00049899,120]
[357137555,1743783038871,-500.0,0.00049899,120]
[357137557,1743783038881,-500.0,0.00049899,120]
[357137559,1743783038890,-500.0,0.00049899,120]
[357137561,1743783038900,-500.0,0.00049899,120]
[357137563,1743783038910,-500.0,0.00049899,120]
[357137565,1743783038919,-500.0,0.00049899,120]
[357137567,1743783038929,-500.0,0.00049899,120]
[357137569,1743783038939,-500.0,0.00049899,120]
[357137571,1743783038948,-500.0,0.00049899,120]
[357137573,1743783038958,-500.0,0.00049899,120]
[357137575,1743783038968,-500.0,0.00049899,120]
[357137577,1743783038977,-500.0,0.00049899,120]
[357137579,1743783038987,-500.0,0.00049899,120]
[357137581,1743783038996,-500.0,0.00049899,120]
[357137583,1743783039006,-500.0,0.00049899,120]
[357137585,1743783039015,-500.0,0.00049899,120]
[357137587,1743783039025,-500.0,0.00049899,120]
[357137589,1743783039035,-344.29400808,0.00049899,120]
[357137591,1743783039045,-187.0299459,0.00049899,15]
[357137593,1743783039054,-32005.9074984,0.000499,120]
[357137595,1743783039064,-958.08800934,0.000499,22]
[357137597,1743783039075,-644.0577149,0.000499,15]
[357137599,1743783039084,-180.0935597,0.000499,28]
[357137601,1743783039094,-17573.9362241,0.0004999,4]
[357137603,1743783039107,-95639.4767139,0.0004999,4]
[357137605,1743783039117,-515.19314524,0.00049998,30]
[357137607,1743783039126,-545.98,0.00049999,120]
[357137609,1743783039135,-500.0,0.00049999,120]
[357137611,1743783039145,-1081.24,0.00049999,120]
[357137613,1743783039154,-500.0,0.00049999,120]
[357137615,1743783039164,-500.0,0.00049999,120]
[357137617,1743783039174,-1111.97,0.00049999,120]
[357137619,1743783039184,-500.0,0.00049999,7]
[357137621,1743783039194,-500.0,0.00049999,120]
[357137623,1743783039203,-500.0,0.00049999,120]
[357137625,1743783039212,-500.0,0.00049999,120]
[357137627,1743783039222,-187.10886274,0.00049999,120]
[357137629,1743783039231,-500.9,0.00049999,120]
[357137631,1743783039241,-500.0,0.00049999,120]
[357137633,1743783039251,-500.0,0.00049999,120]
[357137635,1743783039260,-500.0,0.00049999,120]
[357137637,1743783039270,-1736.92,0.00049999,7]
[357137639,1743783039279,-500.0,0.00049999,120]
[357137641,1743783039289,-638.42,0.00049999,120]
[357137643,1743783039298,-834.89,0.00049999,120]
[357137645,1743783039308,-341.87918371,0.00049999,120]
[357137647,1743783039317,-500.0,0.00049999,120]
[357137649,1743783039328,-500.0,0.00049999,120]
[357137651,1743783039338,-867.85,0.00049999,120]
[357137653,1743783039347,-943.82,0.00049999,120]
[357137655,1743783039358,-529.82454878,0.00049999,120]
[357137657,1743783039367,-500.0,0.00049999,120]
[357137659,1743783039377,-500.0,0.00049999,120]
[357137660,1743783039386,-500.0,0.00049999,120]
[357137661,1743783039396,-162183.64742018,0.0005,90]
[357137662,1743783039408,-892.25232706,0.0005,90]
[357137663,1743783039420,-29107.43922467,0.0005,90]
[357137664,1743783039439,-8372.77221343,0.0005,90]
[357137665,1743783039451,-297.76034282,0.0005,90]
[357137666,1743783039466,-363.22746,0.0005,90]
[357137667,1743783039479,-500.026824,0.0005,90]
[357137695,1743783043115,-221.791608,0.00049315,120]
[357137696,1743783043126,-221.791608,0.00049589,120]
[357137697,1743783043138,-221.791608,0.00049863,120]
[357137698,1743783043149,-549.23,0.00049999,120]
[357137699,1743783043161,-33545.44916702,0.0005,90]
[357137717,1743783043981,-3549.63,0.00049999,120]
[357137718,1743783043994,-28630.03604671,0.0005,90]
[357137719,1743783044008,-54354.38897411,0.0005,90]
[357137720,1743783044019,-500.00022587,0.0005,5]
[357137721,1743783044031,-1708.47597506,0.0005,32]
[357137722,1743783044044,-600.0,0.0005,50]
[357137723,1743783044057,-151.0,0.00050008,120]
[357137724,1743783044070,-381.9131,0.00050035,2]
[357137725,1743783044090,-644.05771481,0.00050039,15]
[357137726,1743783044102,-382.31860449,0.00050125,4]
[357137727,1743783044168,-150.0,0.00050126,120]
[357137741,1743783045984,-285.56665977,0.00050125,4]
[357137744,1743783046534,-1305.18084801,0.00050125,4]
[357137750,1743783046669,-1189.911111,0.00050125,4]
[357137771,1743783047517,-150.0,0.00050125,4]
[357137772,1743783432351,156.41,0.00013699,2]
[357137773,1743783909435,-224.38854597,0.0002,2]
[357137774,1743783954140,-150.0,0.0002,2]
[357137775,1743783961851,-150.0,0.00019999,2]
[357137776,1743784025088,-150.7605137,0.00019999,2]
[357137777,1743784030064,-150.0,0.00019999,2]
[357137778,1743784043127,-179.33400687,0.00019999,2]
[357137779,1743784043150,-73.2394863,0.00019999,2]
[357137780,1743784043180,-2369.62662473,0.0002,2]
[357137781,1743784145181,-300.0,0.000199,2]
[357137782,1743784145202,-1000.0,0.00019999,2]
[357137783,1743784145226,-28517.59564,0.0002,2]
[357137784,1743784149260,-94180.77805222,0.0002,2]
[357137785,1743784149296,-4414.731734,0.0002,2]
[357137786,1743784151090,-42684.18028,0.0002,2]
[357137787,1743784151146,-112994.588,0.0002,2]
[357137788,1743784157163,-7294.967512,0.0002,2]
[357137789,1743784161125,-5531.36481076,0.0001999,2]
[357137790,1743784161151,-427945.31238924,0.0002,2]
[357137791,1743784166086,-174.04581079,0.000199,2]
[357137792,1743784166110,-42662.34022921,0.0002,2]
[357137793,1743784166145,-34226.68522,0.0002,2]
[357137794,1743784167098,-291306.27563899,0.0002,2]
[357137795,1743784170105,-58009.238,0.0002,2]
[357137814,1743784232031,-183.94814314,0.0001999,2]
[357137815,1743784232041,-241.0,0.00019999,2]
[357137816,1743784232051,-714.503683,0.0002,2]
[357137817,1743784232064,-1950.57878212,0.0002,2]
[357137847,1743784237953,-1742.68231021,0.0002,2]
[357137848,1743784238117,-1122517.00303086,0.0002,2]
[357137849,1743784238127,-144996.39084971,0.0002,4]
[357137850,1743784238137,-6333.11514876,0.0002,4]
[357137851,1743784238147,-1013.0,0.0002,6]
[357137852,1743784238158,-150.55,0.0002,2]
[357137853,1743784238169,-150.55,0.0002,2]
[357137854,1743784238181,-150.55,0.0002,2]
[357137855,1743784238191,-150.55,0.0002,2]
[357137856,1743784238201,-150.55,0.0002,2]
[357137857,1743784238211,-500.0,0.0002096,2]
[357137858,1743784238222,-1150.94361889,0.00021,2]
[357137860,1743784238231,-189.95753276,0.00021,2]
[357137862,1743784238240,-2269.28030699,0.0002361,7]
[357137863,1743784238252,-150.55,0.0002479,2]
[357137864,1743784238261,-150.55,0.0002479,2]
[357137865,1743784238271,-357448.421533,0.000248,2]
[357137866,1743784238281,-150.55,0.0002489,2]
[357137867,1743784238291,-34959.48170171,0.000249,2]
[357137868,1743784238303,-43858.13891779,0.000249,2]
[357137869,1743784238313,-2526.87986563,0.00026,2]
[357137870,1743784238323,-1724.7965852,0.00026113,4]
[357137871,1743784238333,-1000.0,0.00026439,2]
[357137873,1743784238343,-155.83,0.00026849,2]
[357137875,1743784238353,-1031.41107118,0.00034899,7]
[357137876,1743784238362,-634.70901779,0.00035248,2]
[357137878,1743784238372,-174.04581079,0.00035775,2]
[357137879,1743784238386,-457.4651,0.00035863,10]
[357137880,1743784238396,-4251.87113704,0.00035899,2]
[357137881,1743784238406,-48507.25699378,0.00035899,2]
[357137882,1743784238416,-1318.8039097,0.00035899,2]
[357137883,1743784238425,-1416.10948736,0.00035899,5]
[357137884,1743784238435,-201.78836016,0.000372,103]
[357137885,1743784238445,-9696.0,0.00039247,2]
[357137886,1743784238454,-161.13,0.00039248,2]
[357137887,1743784238464,-1253.23,0.00044787,2]
[357137888,1743784238474,-150.55,0.0004499,2]
[357137889,1743784238483,-151.0,0.00045,120]
[357137890,1743784238492,-6168.89,0.00045,14]
[357137891,1743784238503,-22591.22336284,0.00045,2]
[357137892,1743784238512,-500.0,0.00046959,120]
[357137893,1743784238522,-767.23,0.0004738,2]
[357137894,1743784238531,-663.17786735,0.00048,2]
[357137895,1743784238541,-1220.71750678,0.00048127,30]
[357137896,1743784238551,-217.69455857,0.000485,120]
[357137897,1743784238560,-1504.191178,0.00048984,4]
[357137898,1743784238570,-2000.0,0.00049,2]
[357137899,1743784238579,-204.45094451,0.00049,7]
[357137900,1743784238589,-10197.26955175,0.00049,2]
[357137901,1743784238601,-1000.0,0.00049005,2]
[357137902,1743784238611,-150.16,0.00049051,2]
[357137903,1743784238621,-153.84,0.00049078,120]
[357137904,1743784238632,-154.96,0.00049097,2]
[357137905,1743784238641,-150.0,0.00049279,7]
[357137906,1743784238651,-242.39,0.00049292,2]
[357137907,1743784238661,-160.364,0.00049292,86]
[357137908,1743784238671,-200.8,0.00049298,120]
[357137909,1743784238681,-23900.0,0.00049298,2]
[357137910,1743784238690,-250.0,0.00049298,120]
[357137911,1743784238700,-230.78,0.00049298,2]
[357137912,1743784238710,-150.55,0.00049305,120]
[357137913,1743784238719,-187.207994,0.00049315,120]
[357137914,1743784238729,-500.0,0.00049315,120]
[357137915,1743784238738,-500.0,0.00049315,120]
[357137916,1743784238748,-500.0,0.00049315,120]
[357137917,1743784238757,-170.14844745,0.00049315,120]
[357137918,1743784238767,-500.0,0.00049315,120]
[357137919,1743784238776,-500.0,0.00049315,120]
[357137920,1743784238785,-500.0,0.00049315,120]
[357137921,1743784238795,-500.0,0.00049315,120]
[357137922,1743784238805,-500.0,0.00049315,120]
[357137923,1743784238814,-500.0,0.00049315,120]
[357137924,1743784238824,-500.0,0.00049315,120]
[357137925,1743784238834,-633.94072107,0.00049315,120]
[357137926,1743784238843,-500.0,0.00049315,120]
[357137927,1743784238853,-500.0,0.00049315,120]
[357137928,1743784238863,-500.0,0.00049315,120]
[357137929,1743784238872,-500.0,0.00049315,120]
[357137930,1743784238883,-500.0,0.00049315,120]
[357137931,1743784238892,-325.87282947,0.00049315,120]
[357137932,1743784238902,-500.0,0.00049315,120]
[357137933,1743784238911,-500.0,0.00049315,120]
[357137934,1743784238921,-500.0,0.00049315,120]
[357137935,1743784238930,-500.0,0.00049315,120]
[357137936,1743784238939,-500.0,0.00049315,120]
[357137937,1743784238949,-500.0,0.00049315,120]
[357137938,1743784238958,-500.0,0.00049315,120]
[357137939,1743784238967,-500.0,0.00049315,120]
[357137940,1743784238977,-500.0,0.00049315,120]
[357137941,1743784238986,-596.78617261,0.00049315,120]
[357137942,1743784238996,-500.0,0.00049315,120]
[357137943,1743784239005,-500.0,0.00049315,120]
[357137944,1743784239014,-500.0,0.00049315,120]
[357137945,1743784239023,-500.0,0.00049315,120]
[357137946,1743784239032,-500.0,0.00049315,120]
[357137947,1743784239041,-187.207994,0.00049315,120]
[357137948,1743784239051,-514.15498322,0.00049315,120]
[357137949,1743784239060,-514.15498322,0.00049315,120]
[357137950,1743784239069,-514.15498322,0.00049315,120]
[357137951,1743784239078,-514.15498322,0.00049315,120]
[357137952,1743784239088,-514.15498322,0.00049315,120]
[357137953,1743784239101,-514.15498322,0.00049315,120]
[357137954,1743784239110,-514.15498322,0.00049315,120]
[357137955,1743784239120,-514.15498322,0.00049315,120]
[357137956,1743784239130,-514.15498322,0.00049315,120]
[357137957,1743784239139,-514.15498322,0.00049315,120]
[357137958,1743784239149,-514.15498322,0.00049315,120]
[357137959,1743784239159,-514.15498322,0.00049315,120]
[357137960,1743784239170,-514.15498322,0.00049315,120]
[357137961,1743784239181,-500.0,0.00049315,120]
[357137962,1743784239193,-500.0,0.00049315,120]
[357137963,1743784239202,-500.0,0.00049315,120]
[357137964,1743784239212,-500.0,0.00049315,120]
[357137965,1743784239224,-500.0,0.00049315,120]
[357137966,1743784239234,-500.0,0.00049315,120]
[357137967,1743784239376,-500.0,0.00049315,120]
[357137968,1743784239387,-500.0,0.00049315,120]
[357137969,1743784239398,-500.0,0.00049315,120]
[357137970,1743784239408,-500.0,0.00049315,120]
[357137971,1743784239418,-500.0,0.00049315,120]
[357137972,1743784239428,-500.0,0.00049315,120]
[357137973,1743784239437,-500.0,0.00049315,120]
[357137974,1743784239447,-500.0,0.00049315,120]
[357137975,1743784239456,-500.0,0.00049315,120]
[357137976,1743784239466,-500.0,0.00049315,120]
[357137977,1743784239475,-500.0,0.00049315,120]
[357137978,1743784239484,-500.0,0.00049315,120]
[357137979,1743784239494,-500.0,0.00049315,120]
[357137980,1743784239504,-500.0,0.00049315,120]
[357137981,1743784239514,-500.0,0.00049315,120]
[357137982,1743784239524,-500.0,0.00049315,120]
[357137983,1743784239534,-500.0,0.00049315,120]
[357137984,1743784239543,-500.0,0.00049315,120]
[357137985,1743784239554,-500.0,0.00049315,120]
[357137986,1743784239564,-500.0,0.00049315,120]
[357137987,1743784239575,-500.0,0.00049315,120]
[357137988,1743784239584,-506.59555377,0.00049315,120]
[357137989,1743784239595,-506.59555377,0.00049315,120]
[357137990,1743784239604,-506.59555377,0.00049315,120]
[357137991,1743784239614,-506.59555377,0.00049315,120]
[357137992,1743784239624,-506.59555377,0.00049315,120]
[357137993,1743784239634,-506.59555377,0.00049315,120]
[357137994,1743784239644,-506.59555377,0.00049315,120]
[357137995,1743784239654,-506.59555377,0.00049315,120]
[357137996,1743784239663,-506.59555377,0.00049315,120]
[357137997,1743784239672,-506.59555377,0.00049315,120]
[357137998,1743784239682,-506.59555377,0.00049315,120]
[357137999,1743784239692,-506.59555377,0.00049315,120]
[357138000,1743784239701,-506.59555377,0.00049315,120]
[357138001,1743784239711,-506.59555377,0.00049315,120]
[357138002,1743784239720,-506.59555377,0.00049315,120]
[357138003,1743784239730,-506.59555377,0.00049315,120]
[357138004,1743784239739,-506.59555377,0.00049315,120]
[357138005,1743784239749,-506.59555377,0.00049315,120]
[357138006,1743784239758,-506.59555377,0.00049315,120]
[357138007,1743784239768,-506.59555377,0.00049315,120]
[357138009,1743784239777,-506.59555377,0.00049315,120]
[357138010,1743784239787,-506.59555377,0.00049315,120]
[357138011,1743784239796,-506.59555377,0.00049315,120]
[357138012,1743784239805,-506.59555377,0.00049315,120]
[357138013,1743784239815,-506.59555377,0.00049315,120]
[357138014,1743784239824,-506.59555377,0.00049315,120]
[357138015,1743784239833,-506.59555377,0.00049315,120]
[357138016,1743784239844,-506.59555377,0.00049315,120]
[357138017,1743784239854,-506.59555377,0.00049315,120]
[357138018,1743784239864,-506.59555377,0.00049315,120]
[357138019,1743784239873,-506.59555377,0.00049315,120]
[357138020,1743784239883,-506.59555377,0.00049315,120]
[357138021,1743784239893,-506.59555377,0.00049315,120]
[357138022,1743784239903,-506.59555377,0.00049315,120]
[357138023,1743784239913,-506.59555377,0.00049315,120]
[357138024,1743784239922,-506.59555377,0.00049315,120]
[357138025,1743784239932,-506.59555377,0.00049315,120]
[357138026,1743784239942,-506.59555377,0.00049315,120]
[357138027,1743784239952,-506.59555377,0.00049315,120]
[357138028,1743784239962,-506.59555377,0.00049315,120]
[357138029,1743784239971,-506.59555377,0.00049315,120]
[357138030,1743784239983,-506.59555377,0.00049315,120]
[357138031,1743784239993,-506.59555377,0.00049315,120]
[357138032,1743784240002,-506.59555377,0.00049315,120]
[357138033,1743784240013,-157.280876,0.00049315,120]
[357138034,1743784240023,-565.77468709,0.00049315,120]
[357138035,1743784240032,-500.0,0.00049315,120]
[357138036,1743784240042,-500.0,0.00049315,120]
[357138037,1743784240052,-500.0,0.00049315,120]
[357138038,1743784240062,-500.0,0.00049315,120]
[357138039,1743784240071,-500.0,0.00049315,120]
[357138041,1743784240081,-1875.29,0.00049315,120]
[357138042,1743784240091,-500.0,0.00049315,120]
[357138043,1743784240101,-562.80074769,0.00049315,120]
[357138044,1743784240110,-500.0,0.00049315,120]
[357138045,1743784240120,-500.0,0.00049315,120]
[357138046,1743784240130,-1956.54,0.00049315,120]
[357138047,1743784240140,-500.0,0.00049315,120]
[357138048,1743784240149,-371.06692678,0.00049315,120]
[357138049,1743784240159,-611.34098416,0.00049315,120]
[357138050,1743784240171,-500.0,0.00049315,120]
[357138051,1743784240182,-825.72,0.00049315,120]
[357138052,1743784240192,-500.0,0.00049315,120]
[357138053,1743784240201,-500.0,0.00049315,120]
[357138054,1743784240212,-524.14,0.00049315,120]
[357138055,1743784240221,-908.92,0.00049315,120]
[357138056,1743784240231,-500.0,0.00049315,120]
[357138057,1743784240240,-500.0,0.00049315,120]
[357138058,1743784240250,-500.0,0.00049315,2]
[357138059,1743784240261,-500.0,0.00049315,120]
[357138060,1743784240271,-754.52,0.00049315,120]
[357138061,1743784240281,-597.72,0.00049315,120]
[357138062,1743784240291,-597.72,0.00049315,120]
[357138063,1743784240300,-597.72,0.00049315,120]
[357138064,1743784240310,-597.72,0.00049315,120]
[357138065,1743784240320,-597.72,0.00049315,120]
[357138066,1743784240329,-597.72,0.00049315,120]
[357138067,1743784240339,-597.72,0.00049315,120]
[357138068,1743784240349,-597.72,0.00049315,120]
[357138069,1743784240359,-597.72,0.00049315,120]
[357138070,1743784240369,-597.72,0.00049315,120]
[357138071,1743784240379,-1109.981995,0.00049315,120]
[357138072,1743784240388,-500.0,0.00049315,120]
[357138073,1743784240398,-500.0,0.00049315,120]
[357138074,1743784240408,-460.225351,0.00049315,120]
[357138075,1743784240417,-500.0,0.00049315,120]
[357138076,1743784240427,-500.0,0.00049315,120]
[357138077,1743784240436,-595.6247796,0.00049315,120]
[357138078,1743784240446,-500.0,0.00049315,120]
[357138079,1743784240455,-500.0,0.00049315,120]
[357138080,1743784240465,-500.0,0.00049315,120]
[357138081,1743784240474,-500.0,0.00049315,2]
[357138082,1743784240484,-500.0,0.00049315,120]
[357138083,1743784240493,-553.61,0.00049315,120]
[357138084,1743784240503,-500.0,0.00049315,120]
[357138085,1743784240512,-500.0,0.00049315,120]
[357138086,1743784240521,-500.0,0.00049315,100]
[357138087,1743784240531,-166.99521515,0.00049315,120]
[357138088,1743784240540,-6029.959359,0.00049315,120]
[357138089,1743784240549,-522.79583085,0.00049315,120]